[Event "Titled Tuesday Blitz May 4 2021"]
[White "Mchedlishvili, Mikheil"]
[Black "PattyCastillo"]
[WhiteFideId "13600966"]
[WhiteElo "2618"]
[BlackElo "2016"]
[Result "1-0"]
[Round "01"]
[TimeControl "180+1"]
[Date "2021.05.04"]
[WhiteClock "0:00:22"]
[BlackClock "0:00:02"]

1. d4 {[%clk 0:02:59]}  d5 {[%clk 0:02:28]} 2. c4 {[%clk 0:02:58]}  c6 {[%clk 0:02:28]} 3. Nf3 {[%clk 0:02:57]}  Nf6 {[%clk 0:02:26]} 4. e3 {[%clk 0:02:57]}  e6 {[%clk 0:02:23]} 5. b3 {[%clk 0:02:57]}  Nbd7 {[%clk 0:02:24]} 6. Bb2 {[%clk 0:02:56]}  Bd6 {[%clk 0:02:21]} 7. Nbd2 {[%clk 0:02:55]}  O-O {[%clk 0:02:21]} 8. Bd3 {[%clk 0:02:55]}  Qe7 {[%clk 0:02:21]} 9. Ne5 {[%clk 0:02:49]}  Bb4 {[%clk 0:02:07]} 10. O-O {[%clk 0:02:45]}  Bxd2 {[%clk 0:02:06]} 11. Qxd2 {[%clk 0:02:45]}  Nxe5 {[%clk 0:02:04]} 12. dxe5 {[%clk 0:02:46]}  Nd7 {[%clk 0:02:02]} 13. e4 {[%clk 0:02:22]}  dxc4 {[%clk 0:01:58]} 14. Bxc4 {[%clk 0:02:21]}  Qh4 {[%clk 0:01:51]} 15. f4 {[%clk 0:02:17]}  Nc5 {[%clk 0:01:41]} 16. Qe3 {[%clk 0:02:13]}  Nd7 {[%clk 0:01:32]} 17. f5 {[%clk 0:02:03]}  Nb6 {[%clk 0:01:25]} 18. Be2 {[%clk 0:01:59]}  exf5 {[%clk 0:01:21]} 19. exf5 {[%clk 0:01:58]}  Nd5 {[%clk 0:01:21]} 20. Qf3 {[%clk 0:01:56]}  Qg5 {[%clk 0:01:11]} 21. Rad1 {[%clk 0:01:36]}  Qe3+ {[%clk 0:01:09]} 22. Kh1 {[%clk 0:01:35]}  Qxf3 {[%clk 0:01:07]} 23. Rxf3 {[%clk 0:01:34]}  Bxf5 {[%clk 0:00:55]} 24. Rxf5 {[%clk 0:01:31]}  Ne3 {[%clk 0:00:55]} 25. Rdf1 {[%clk 0:01:16]}  Nxf1 {[%clk 0:00:49]} 26. Rxf1 {[%clk 0:01:15]}  Rad8 {[%clk 0:00:50]} 27. Bc3 {[%clk 0:01:14]}  b6 {[%clk 0:00:46]} 28. a4 {[%clk 0:01:09]}  c5 {[%clk 0:00:45]} 29. Bc4 {[%clk 0:01:08]}  Rde8 {[%clk 0:00:38]} 30. g3 {[%clk 0:00:42]}  Re7 {[%clk 0:00:38]} 31. Rd1 {[%clk 0:00:43]}  h6 {[%clk 0:00:31]} 32. Kg2 {[%clk 0:00:42]}  Kh7 {[%clk 0:00:31]} 33. Kf3 {[%clk 0:00:41]}  f6 {[%clk 0:00:31]} 34. exf6 {[%clk 0:00:40]}  gxf6 {[%clk 0:00:30]} 35. Rd6 {[%clk 0:00:40]}  Kg6 {[%clk 0:00:26]} 36. Bd3+ {[%clk 0:00:35]}  Kg7 {[%clk 0:00:25]} 37. Kf4 {[%clk 0:00:35]}  Rff7 {[%clk 0:00:18]} 38. Kf5 {[%clk 0:00:31]}  Rd7 {[%clk 0:00:08]} 39. Rxd7 {[%clk 0:00:28]}  Rxd7 {[%clk 0:00:08]} 40. Bxf6+ {[%clk 0:00:28]}  Kf7 {[%clk 0:00:07]} 41. Bc4+ {[%clk 0:00:28]}  Kf8 {[%clk 0:00:07]} 42. Kg6 {[%clk 0:00:27]}  Rd6 {[%clk 0:00:06]} 43. g4 {[%clk 0:00:26]}  Rd2 {[%clk 0:00:05]} 44. h4 {[%clk 0:00:26]}  Rd6 {[%clk 0:00:03]} 45. g5 {[%clk 0:00:26]}  hxg5 {[%clk 0:00:03]} 46. hxg5 {[%clk 0:00:26]}  Rd2 {[%clk 0:00:01]} 47. Kf5 {[%clk 0:00:24]}  Rf2+ {[%clk 0:00:01]} 48. Ke6 {[%clk 0:00:24]}  Ke8 {[%clk 0:00:01]} 49. g6 {[%clk 0:00:22]}  Kf8 {[%clk 0:00:01]} 50. g7+ {[%clk 0:00:22]}  Kg8 {[%clk 0:00:02]} 51. Ke7+ {[%clk 0:00:22]}  Kh7 {[%clk 0:00:02]} 52. g8=Q+ {[%clk 0:00:22]}  Kh6 {[%clk 0:00:02]} 53. Qg5+ {[%clk 0:00:21]}  Kh7 {[%clk 0:00:02]} 54. Qg7# {[%clk 0:00:22]} 1-0


[Site "https://www.chess.com"]

[Event "Titled Tuesday Blitz May 4 2021"]
[White "Meissner, Felix"]
[Black "Cella, Glaucio Dalla Cortt"]
[WhiteFideId "24671827"]
[BlackFideId "2119455"]
[WhiteElo "2390"]
[BlackElo "2011"]
[Result "1-0"]
[Round "01"]
[TimeControl "180+1"]
[Date "2021.05.04"]
[WhiteClock "0:01:07"]
[BlackClock "0:00:08"]

1. e4 {[%clk 0:03:00]}  c5 {[%clk 0:02:57]} 2. Nf3 {[%clk 0:02:58]}  e6 {[%clk 0:02:55]} 3. g3 {[%clk 0:02:57]}  Nc6 {[%clk 0:02:54]} 4. Bg2 {[%clk 0:02:57]}  d5 {[%clk 0:02:52]} 5. exd5 {[%clk 0:02:56]}  exd5 {[%clk 0:02:53]} 6. O-O {[%clk 0:02:56]}  Nf6 {[%clk 0:02:53]} 7. Re1+ {[%clk 0:02:56]}  Be7 {[%clk 0:02:54]} 8. d4 {[%clk 0:02:57]}  O-O {[%clk 0:02:53]} 9. Nc3 {[%clk 0:02:56]}  Be6 {[%clk 0:02:42]} 10. Be3 {[%clk 0:02:55]}  cxd4 {[%clk 0:02:41]} 11. Nxd4 {[%clk 0:02:55]}  Nxd4 {[%clk 0:02:40]} 12. Bxd4 {[%clk 0:02:51]}  Rc8 {[%clk 0:02:40]} 13. a3 {[%clk 0:02:48]}  a6 {[%clk 0:02:40]} 14. Qd3 {[%clk 0:02:46]}  Qc7 {[%clk 0:02:32]} 15. Re2 {[%clk 0:02:46]}  Qc4 {[%clk 0:02:31]} 16. Rae1 {[%clk 0:02:45]}  Qxd3 {[%clk 0:02:31]} 17. cxd3 {[%clk 0:02:46]}  b5 {[%clk 0:02:15]} 18. h3 {[%clk 0:02:41]}  Rfd8 {[%clk 0:02:13]} 19. g4 {[%clk 0:02:40]}  h6 {[%clk 0:02:12]} 20. f4 {[%clk 0:02:40]}  Bc5 {[%clk 0:01:58]} 21. Bxc5 {[%clk 0:02:39]}  Rxc5 {[%clk 0:01:58]} 22. f5 {[%clk 0:02:40]}  Bc8 {[%clk 0:01:52]} 23. Re7 {[%clk 0:02:26]}  Rd7 {[%clk 0:01:26]} 24. Bf3 {[%clk 0:02:10]}  Kf8 {[%clk 0:01:21]} 25. R7e5 {[%clk 0:02:08]}  Rcc7 {[%clk 0:00:40]} 26. h4 {[%clk 0:02:07]}  d4 {[%clk 0:00:31]} 27. Ne4 {[%clk 0:02:00]}  Nxe4 {[%clk 0:00:31]} 28. R5xe4 {[%clk 0:01:58]}  f6 {[%clk 0:00:27]} 29. Re8+ {[%clk 0:01:56]}  Kf7 {[%clk 0:00:27]} 30. Kf2 {[%clk 0:01:50]}  Bb7 {[%clk 0:00:26]} 31. Bxb7 {[%clk 0:01:47]}  Rxb7 {[%clk 0:00:27]} 32. Rh8 {[%clk 0:01:38]}  Rbc7 {[%clk 0:00:24]} 33. Ree8 {[%clk 0:01:38]}  Rc2+ {[%clk 0:00:20]} 34. Kf3 {[%clk 0:01:37]}  g5 {[%clk 0:00:13]} 35. Ra8 {[%clk 0:01:24]}  Kg7 {[%clk 0:00:10]} 36. Rhg8+ {[%clk 0:01:23]}  Kf7 {[%clk 0:00:09]} 37. hxg5 {[%clk 0:01:22]}  hxg5 {[%clk 0:00:10]} 38. Rh8 {[%clk 0:01:15]}  Kg7 {[%clk 0:00:08]} 39. Rh3 {[%clk 0:01:07]}  Rxb2 {[%clk 0:00:08]} 40. Rah8 {[%clk 0:01:07]} 1-0


[Site "https://www.chess.com"]

[Event "Titled Tuesday Blitz May 4 2021"]
[White "Mickiewicz, Piotr"]
[Black "Madaminov, Mukhiddin"]
[WhiteFideId "1114891"]
[BlackFideId "14210703"]
[WhiteElo "2263"]
[BlackElo "1747"]
[Result "0-1"]
[Round "01"]
[TimeControl "180+1"]
[Date "2021.05.04"]
[WhiteClock "0:00:02"]
[BlackClock "0:00:55"]

1. Nf3 {[%clk 0:02:59]}  Nf6 {[%clk 0:02:59]} 2. g3 {[%clk 0:02:58]}  d5 {[%clk 0:02:59]} 3. Bg2 {[%clk 0:02:58]}  c6 {[%clk 0:03:00]} 4. O-O {[%clk 0:02:58]}  Bg4 {[%clk 0:03:01]} 5. b3 {[%clk 0:02:48]}  Nbd7 {[%clk 0:02:56]} 6. Bb2 {[%clk 0:02:48]}  g6 {[%clk 0:02:55]} 7. d3 {[%clk 0:02:48]}  Bg7 {[%clk 0:02:55]} 8. Nbd2 {[%clk 0:02:48]}  O-O {[%clk 0:02:46]} 9. h3 {[%clk 0:02:48]}  Bxf3 {[%clk 0:02:46]} 10. Nxf3 {[%clk 0:02:39]}  Qc7 {[%clk 0:02:46]} 11. c4 {[%clk 0:02:33]}  e5 {[%clk 0:02:45]} 12. cxd5 {[%clk 0:02:31]}  Nxd5 {[%clk 0:02:45]} 13. Qc2 {[%clk 0:02:15]}  Rad8 {[%clk 0:02:39]} 14. a3 {[%clk 0:02:11]}  a5 {[%clk 0:02:31]} 15. Rac1 {[%clk 0:02:04]}  Rfe8 {[%clk 0:02:29]} 16. Nd2 {[%clk 0:01:59]}  N5b6 {[%clk 0:02:09]} 17. b4 {[%clk 0:01:51]}  axb4 {[%clk 0:02:10]} 18. axb4 {[%clk 0:01:51]}  Qb8 {[%clk 0:02:08]} 19. Nb3 {[%clk 0:01:41]}  Bf8 {[%clk 0:02:00]} 20. b5 {[%clk 0:01:18]}  cxb5 {[%clk 0:01:59]} 21. Na5 {[%clk 0:01:16]}  Nc5 {[%clk 0:01:52]} 22. Qb1 {[%clk 0:00:50]}  Qa7 {[%clk 0:01:43]} 23. Ba3 {[%clk 0:00:24]}  Qxa5 {[%clk 0:01:35]} 24. Bxc5 {[%clk 0:00:23]}  b4 {[%clk 0:01:36]} 25. Bxf8 {[%clk 0:00:20]}  Rxf8 {[%clk 0:01:31]} 26. Rc7 {[%clk 0:00:20]}  Rd7 {[%clk 0:01:23]} 27. Rfc1 {[%clk 0:00:19]}  Rxc7 {[%clk 0:01:17]} 28. Rxc7 {[%clk 0:00:20]}  Rc8 {[%clk 0:01:17]} 29. Rxc8+ {[%clk 0:00:19]}  Nxc8 {[%clk 0:01:18]} 30. Qc2 {[%clk 0:00:15]}  Nd6 {[%clk 0:01:18]} 31. Kh2 {[%clk 0:00:11]}  Qb6 {[%clk 0:01:15]} 32. Qb3 {[%clk 0:00:06]}  Qxf2 {[%clk 0:01:12]} 33. Qxb4 {[%clk 0:00:06]}  Nf5 {[%clk 0:01:13]} 34. Qxb7 {[%clk 0:00:03]}  Qxg3+ {[%clk 0:01:12]} 35. Kg1 {[%clk 0:00:02]}  Qe3+ {[%clk 0:01:01]} 36. Kh2 {[%clk 0:00:01]}  Qxe2 {[%clk 0:00:59]} 37. Qe4 {[%clk 0:00:02]}  Qb2 {[%clk 0:00:55]} 0-1


[Site "https://www.chess.com"]

[Event "Titled Tuesday Blitz May 4 2021"]
[White "Mitrabha, Guha"]
[Black "Loy, Konstantin"]
[WhiteFideId "5057000"]
[BlackFideId "14122499"]
[WhiteElo "2334"]
[BlackElo "2084"]
[Result "1-0"]
[Round "01"]
[TimeControl "180+1"]
[Date "2021.05.04"]
[WhiteClock "0:00:21"]
[BlackClock "0:00:01"]

1. Nf3 {[%clk 0:02:48]}  c5 {[%clk 0:02:59]} 2. c4 {[%clk 0:02:48]}  Nf6 {[%clk 0:02:58]} 3. d4 {[%clk 0:02:48]}  cxd4 {[%clk 0:02:59]} 4. Nxd4 {[%clk 0:02:49]}  e5 {[%clk 0:03:00]} 5. Nb5 {[%clk 0:02:49]}  d5 {[%clk 0:02:59]} 6. cxd5 {[%clk 0:02:49]}  Bc5 {[%clk 0:03:00]} 7. N5c3 {[%clk 0:02:49]}  O-O {[%clk 0:02:59]} 8. e3 {[%clk 0:02:49]}  Qe7 {[%clk 0:02:58]} 9. Be2 {[%clk 0:02:49]}  e4 {[%clk 0:02:58]} 10. a3 {[%clk 0:02:49]}  a5 {[%clk 0:02:57]} 11. O-O {[%clk 0:02:48]}  Rd8 {[%clk 0:02:55]} 12. b3 {[%clk 0:02:45]}  Na6 {[%clk 0:02:54]} 13. Bb2 {[%clk 0:02:43]}  Nc7 {[%clk 0:02:51]} 14. Nd2 {[%clk 0:02:38]}  Ncxd5 {[%clk 0:02:14]} 15. Nxd5 {[%clk 0:02:37]}  Rxd5 {[%clk 0:02:11]} 16. Qc2 {[%clk 0:02:29]}  Bf5 {[%clk 0:02:06]} 17. Rfd1 {[%clk 0:02:24]}  Rc8 {[%clk 0:01:50]} 18. Rac1 {[%clk 0:01:41]}  Bd6 {[%clk 0:01:16]} 19. Nc4 {[%clk 0:01:29]}  b5 {[%clk 0:00:46]} 20. Rxd5 {[%clk 0:01:01]}  Nxd5 {[%clk 0:00:44]} 21. Qd2 {[%clk 0:01:01]}  bxc4 {[%clk 0:00:27]} 22. Qxd5 {[%clk 0:01:00]}  Be6 {[%clk 0:00:19]} 23. Qd4 {[%clk 0:00:58]}  f6 {[%clk 0:00:17]} 24. Bxc4 {[%clk 0:00:58]}  Bxc4 {[%clk 0:00:15]} 25. Rxc4 {[%clk 0:00:59]}  Rxc4 {[%clk 0:00:12]} 26. Qxc4+ {[%clk 0:00:59]}  Kf8 {[%clk 0:00:12]} 27. a4 {[%clk 0:00:59]}  Be5 {[%clk 0:00:09]} 28. Bxe5 {[%clk 0:00:42]}  Qxe5 {[%clk 0:00:10]} 29. g3 {[%clk 0:00:41]}  h5 {[%clk 0:00:10]} 30. Kg2 {[%clk 0:00:37]}  Qf5 {[%clk 0:00:10]} 31. Qe2 {[%clk 0:00:36]}  Ke7 {[%clk 0:00:08]} 32. h3 {[%clk 0:00:36]}  g6 {[%clk 0:00:08]} 33. Qd1 {[%clk 0:00:35]}  Ke6 {[%clk 0:00:05]} 34. Qd8 {[%clk 0:00:32]}  Qf3+ {[%clk 0:00:04]} 35. Kg1 {[%clk 0:00:31]}  Kf7 {[%clk 0:00:02]} 36. Qxa5 {[%clk 0:00:18]}  Qd1+ {[%clk 0:00:02]} 37. Kh2 {[%clk 0:00:18]}  Qe2 {[%clk 0:00:02]} 38. Qc7+ {[%clk 0:00:18]}  Kf8 {[%clk 0:00:01]} 39. Kg2 {[%clk 0:00:18]}  Qf3+ {[%clk 0:00:01]} 40. Kg1 {[%clk 0:00:18]}  Qd1+ {[%clk 0:00:01]} 41. Kh2 {[%clk 0:00:19]}  Qe2 {[%clk 0:00:01]} 42. Qf4 {[%clk 0:00:19]}  Kg7 {[%clk 0:00:01]} 43. g4 {[%clk 0:00:19]}  hxg4 {[%clk 0:00:01]} 44. hxg4 {[%clk 0:00:20]}  g5 {[%clk 0:00:01]} 45. Qf5 {[%clk 0:00:20]}  Qb2 {[%clk 0:00:01]} 46. Kg2 {[%clk 0:00:20]}  Qxb3 {[%clk 0:00:01]} 47. Qxe4 {[%clk 0:00:20]}  Kf7 {[%clk 0:00:01]} 48. a5 {[%clk 0:00:20]}  Kg7 {[%clk 0:00:01]} 49. a6 {[%clk 0:00:21]}  Qa3 {[%clk 0:00:02]} 50. Qb7+ {[%clk 0:00:20]}  Kg6 {[%clk 0:00:02]} 51. a7 {[%clk 0:00:21]}  Qc1 {[%clk 0:00:01]} 52. a8=Q {[%clk 0:00:21]} 1-0


[Site "https://www.chess.com"]

[Event "Titled Tuesday Blitz May 4 2021"]
[White "Mohandesi, Shahin"]
[Black "Hartikainen, Jarmo"]
[WhiteFideId "12501247"]
[BlackFideId "503134"]
[WhiteElo "1993"]
[BlackElo "2068"]
[Result "1-0"]
[Round "01"]
[TimeControl "180+1"]
[Date "2021.05.04"]
[WhiteClock "0:00:10"]
[BlackClock "0:00:02"]

1. d4 {[%clk 0:03:00]}  Nf6 {[%clk 0:02:59]} 2. c4 {[%clk 0:03:00]}  g6 {[%clk 0:02:59]} 3. Nf3 {[%clk 0:02:59]}  d5 {[%clk 0:02:59]} 4. g3 {[%clk 0:03:00]}  Bg7 {[%clk 0:02:59]} 5. Bg2 {[%clk 0:02:54]}  O-O {[%clk 0:02:59]} 6. cxd5 {[%clk 0:02:53]}  Nxd5 {[%clk 0:02:58]} 7. Nc3 {[%clk 0:02:52]}  Nb6 {[%clk 0:02:53]} 8. O-O {[%clk 0:02:51]}  Nc6 {[%clk 0:02:32]} 9. d5 {[%clk 0:02:51]}  Nb4 {[%clk 0:02:30]} 10. e4 {[%clk 0:02:52]}  e6 {[%clk 0:02:22]} 11. a3 {[%clk 0:02:47]}  Na6 {[%clk 0:02:20]} 12. Bf4 {[%clk 0:02:40]}  exd5 {[%clk 0:02:17]} 13. Nxd5 {[%clk 0:02:41]}  Nxd5 {[%clk 0:02:16]} 14. exd5 {[%clk 0:02:41]}  Bg4 {[%clk 0:02:08]} 15. Qb3 {[%clk 0:02:26]}  Nc5 {[%clk 0:01:57]} 16. Qc4 {[%clk 0:02:15]}  Na6 {[%clk 0:01:06]} 17. Rad1 {[%clk 0:01:58]}  Re8 {[%clk 0:00:46]} 18. b4 {[%clk 0:01:57]}  Rc8 {[%clk 0:00:45]} 19. Rd2 {[%clk 0:01:25]}  Qf6 {[%clk 0:00:42]} 20. Nd4 {[%clk 0:00:45]}  Nb8 {[%clk 0:00:26]} 21. Nb5 {[%clk 0:00:44]}  c6 {[%clk 0:00:21]} 22. Nxa7 {[%clk 0:00:39]}  cxd5 {[%clk 0:00:21]} 23. Qd3 {[%clk 0:00:32]}  Rcd8 {[%clk 0:00:20]} 24. Nb5 {[%clk 0:00:28]}  Nc6 {[%clk 0:00:20]} 25. Nc7 {[%clk 0:00:23]}  Bf5 {[%clk 0:00:14]} 26. Nxe8 {[%clk 0:00:22]}  Rxe8 {[%clk 0:00:12]} 27. Qb3 {[%clk 0:00:22]}  Be4 {[%clk 0:00:12]} 28. f3 {[%clk 0:00:18]}  Bf5 {[%clk 0:00:11]} 29. Qxd5 {[%clk 0:00:18]}  Be6 {[%clk 0:00:11]} 30. Qd3 {[%clk 0:00:17]}  Qd4+ {[%clk 0:00:09]} 31. Qxd4 {[%clk 0:00:17]}  Nxd4 {[%clk 0:00:09]} 32. Re1 {[%clk 0:00:14]}  Nb5 {[%clk 0:00:08]} 33. a4 {[%clk 0:00:12]}  Nc3 {[%clk 0:00:04]} 34. Be5 {[%clk 0:00:09]}  Bxe5 {[%clk 0:00:02]} 35. Rxe5 {[%clk 0:00:10]} 1-0


[Site "https://www.chess.com"]

[Event "Titled Tuesday Blitz May 4 2021"]
[White "Moskalenko, Alexander"]
[Black "Devaev, Alexander"]
[WhiteFideId "4155351"]
[BlackFideId "4169395"]
[WhiteElo "2495"]
[BlackElo "2185"]
[Result "1-0"]
[Round "01"]
[TimeControl "180+1"]
[Date "2021.05.04"]
[WhiteClock "0:01:10"]
[BlackClock "0:00:58"]

1. e4 {[%clk 0:03:00]}  c6 {[%clk 0:02:59]} 2. Nf3 {[%clk 0:02:59]}  d5 {[%clk 0:03:00]} 3. Nc3 {[%clk 0:02:59]}  Nf6 {[%clk 0:03:00]} 4. e5 {[%clk 0:02:59]}  Ne4 {[%clk 0:03:01]} 5. Qe2 {[%clk 0:02:56]}  Nxc3 {[%clk 0:02:59]} 6. dxc3 {[%clk 0:02:57]}  e6 {[%clk 0:02:59]} 7. h4 {[%clk 0:02:53]}  Be7 {[%clk 0:02:58]} 8. h5 {[%clk 0:02:52]}  b6 {[%clk 0:02:59]} 9. h6 {[%clk 0:02:49]}  g6 {[%clk 0:02:58]} 10. Bf4 {[%clk 0:02:47]}  Ba6 {[%clk 0:02:58]} 11. Qe3 {[%clk 0:02:47]}  O-O {[%clk 0:02:57]} 12. Bxa6 {[%clk 0:02:43]}  Nxa6 {[%clk 0:02:57]} 13. O-O-O {[%clk 0:02:44]}  Nc7 {[%clk 0:02:53]} 14. Bg5 {[%clk 0:02:43]}  a5 {[%clk 0:02:51]} 15. Bxe7 {[%clk 0:02:35]}  Qxe7 {[%clk 0:02:51]} 16. Qxb6 {[%clk 0:02:36]}  Qd7 {[%clk 0:02:51]} 17. Ng5 {[%clk 0:02:34]}  Rfb8 {[%clk 0:02:50]} 18. Ne4 {[%clk 0:02:28]}  Qe7 {[%clk 0:02:19]} 19. Qc5 {[%clk 0:02:20]}  Qxc5 {[%clk 0:02:12]} 20. Nxc5 {[%clk 0:02:18]}  a4 {[%clk 0:02:13]} 21. Nd7 {[%clk 0:02:02]}  Rb7 {[%clk 0:02:10]} 22. Nf6+ {[%clk 0:02:02]}  Kh8 {[%clk 0:02:10]} 23. Rh4 {[%clk 0:02:00]}  a3 {[%clk 0:01:53]} 24. b3 {[%clk 0:01:55]}  Rba7 {[%clk 0:01:50]} 25. c4 {[%clk 0:01:53]}  Ne8 {[%clk 0:01:50]} 26. cxd5 {[%clk 0:01:48]}  Nxf6 {[%clk 0:01:48]} 27. exf6 {[%clk 0:01:49]}  cxd5 {[%clk 0:01:48]} 28. Rb4 {[%clk 0:01:46]}  Rc8 {[%clk 0:01:48]} 29. Rd3 {[%clk 0:01:33]}  Kg8 {[%clk 0:01:47]} 30. Kd2 {[%clk 0:01:27]}  Kf8 {[%clk 0:01:47]} 31. f4 {[%clk 0:01:27]}  Ke8 {[%clk 0:01:48]} 32. g4 {[%clk 0:01:28]}  Rac7 {[%clk 0:01:47]} 33. c3 {[%clk 0:01:27]}  Ra7 {[%clk 0:01:47]} 34. g5 {[%clk 0:01:26]}  Kd7 {[%clk 0:01:40]} 35. c4 {[%clk 0:01:26]}  Rac7 {[%clk 0:01:40]} 36. Ke3 {[%clk 0:01:23]}  Kd6 {[%clk 0:01:35]} 37. Ra4 {[%clk 0:01:22]}  Kc5 {[%clk 0:01:18]} 38. cxd5 {[%clk 0:01:21]}  exd5 {[%clk 0:01:18]} 39. Rxa3 {[%clk 0:01:19]}  Re8+ {[%clk 0:01:16]} 40. Kf3 {[%clk 0:01:19]}  Re1 {[%clk 0:01:08]} 41. Ra5+ {[%clk 0:01:18]}  Kc6 {[%clk 0:01:08]} 42. Rc3+ {[%clk 0:01:17]}  Kd7 {[%clk 0:01:07]} 43. Rxc7+ {[%clk 0:01:17]}  Kxc7 {[%clk 0:01:08]} 44. Rxd5 {[%clk 0:01:15]}  Ra1 {[%clk 0:01:06]} 45. Rd2 {[%clk 0:01:14]}  Rf1+ {[%clk 0:01:06]} 46. Ke4 {[%clk 0:01:13]}  Re1+ {[%clk 0:00:58]} 47. Kd3 {[%clk 0:01:12]}  Rf1 {[%clk 0:00:58]} 48. Ke3 {[%clk 0:01:13]}  Re1+ {[%clk 0:00:58]} 49. Re2 {[%clk 0:01:14]}  Rf1 {[%clk 0:00:58]} 50. b4 {[%clk 0:01:12]}  Rb1 {[%clk 0:00:57]} 51. Kf3 {[%clk 0:01:12]}  Kd6 {[%clk 0:00:58]} 52. Re7 {[%clk 0:01:11]}  Rxb4 {[%clk 0:00:58]} 53. Rxf7 {[%clk 0:01:11]}  Ra4 {[%clk 0:00:58]} 54. Rxh7 {[%clk 0:01:11]}  Rxa2 {[%clk 0:00:59]} 55. Rg7 {[%clk 0:01:11]}  Ra3+ {[%clk 0:00:58]} 56. Kg4 {[%clk 0:01:11]}  Ra1 {[%clk 0:00:58]} 57. Rxg6 {[%clk 0:01:10]} 1-0


[Site "https://www.chess.com"]

[Event "Titled Tuesday Blitz May 4 2021"]
[White "Napoli, Nicolo"]
[Black "Piccoli, Lucas Fonseca"]
[WhiteFideId "813702"]
[BlackFideId "2190788"]
[WhiteElo "2330"]
[BlackElo "1776"]
[Result "1-0"]
[Round "01"]
[TimeControl "180+1"]
[Date "2021.05.04"]
[WhiteClock "0:00:05"]
[BlackClock "0:00:03"]

1. e4 {[%clk 0:02:56]}  c6 {[%clk 0:02:59]} 2. d4 {[%clk 0:02:55]}  d5 {[%clk 0:03:00]} 3. Nc3 {[%clk 0:02:54]}  dxe4 {[%clk 0:03:00]} 4. Nxe4 {[%clk 0:02:55]}  Bf5 {[%clk 0:02:59]} 5. Ng3 {[%clk 0:02:55]}  Bg6 {[%clk 0:03:00]} 6. h4 {[%clk 0:02:54]}  h6 {[%clk 0:03:01]} 7. Nh3 {[%clk 0:02:53]}  Nf6 {[%clk 0:02:58]} 8. Nf4 {[%clk 0:02:51]}  Bh7 {[%clk 0:02:57]} 9. Bc4 {[%clk 0:02:50]}  e6 {[%clk 0:02:58]} 10. c3 {[%clk 0:02:45]}  Bd6 {[%clk 0:02:53]} 11. Nfh5 {[%clk 0:02:39]}  O-O {[%clk 0:02:46]} 12. Qe2 {[%clk 0:02:33]}  Nbd7 {[%clk 0:02:25]} 13. Bd2 {[%clk 0:02:22]}  b5 {[%clk 0:02:20]} 14. Bb3 {[%clk 0:02:19]}  a5 {[%clk 0:02:17]} 15. O-O {[%clk 0:02:10]}  a4 {[%clk 0:02:15]} 16. Bd1 {[%clk 0:02:09]}  e5 {[%clk 0:02:08]} 17. Be3 {[%clk 0:02:03]}  Re8 {[%clk 0:01:55]} 18. Qd2 {[%clk 0:01:57]}  Nxh5 {[%clk 0:01:34]} 19. Nxh5 {[%clk 0:01:58]}  Qxh4 {[%clk 0:01:13]} 20. g3 {[%clk 0:01:37]}  Qh3 {[%clk 0:00:58]} 21. Bxh6 {[%clk 0:01:26]}  Be4 {[%clk 0:00:55]} 22. f3 {[%clk 0:01:03]}  Qxh5 {[%clk 0:00:53]} 23. Bxg7 {[%clk 0:01:00]}  Kxg7 {[%clk 0:00:39]} 24. fxe4 {[%clk 0:01:00]}  Qg6 {[%clk 0:00:38]} 25. Rf5 {[%clk 0:00:56]}  Qxg3+ {[%clk 0:00:27]} 26. Kf1 {[%clk 0:00:55]}  Qh3+ {[%clk 0:00:25]} 27. Ke1 {[%clk 0:00:39]}  Be7 {[%clk 0:00:21]} 28. Qe2 {[%clk 0:00:28]}  f6 {[%clk 0:00:07]} 29. Kd2 {[%clk 0:00:25]}  Rh8 {[%clk 0:00:08]} 30. Bc2 {[%clk 0:00:21]}  Kf7 {[%clk 0:00:07]} 31. Raf1 {[%clk 0:00:19]}  Qh6+ {[%clk 0:00:03]} 32. Kd1 {[%clk 0:00:17]}  Ke6 {[%clk 0:00:02]} 33. d5+ {[%clk 0:00:15]}  cxd5 {[%clk 0:00:03]} 34. exd5+ {[%clk 0:00:16]}  Kd6 {[%clk 0:00:03]} 35. Qxb5 {[%clk 0:00:13]}  Rac8 {[%clk 0:00:02]} 36. Bxa4 {[%clk 0:00:10]}  Nc5 {[%clk 0:00:01]} 37. Qb6+ {[%clk 0:00:09]}  Kxd5 {[%clk 0:00:02]} 38. Bb3+ {[%clk 0:00:08]}  Ke4 {[%clk 0:00:02]} 39. Qb4+ {[%clk 0:00:05]}  Ke3 {[%clk 0:00:02]} 40. Qc4 {[%clk 0:00:05]}  Qh5+ {[%clk 0:00:02]} 41. Kc2 {[%clk 0:00:04]}  Rcd8 {[%clk 0:00:03]} 42. Rxh5 {[%clk 0:00:04]}  Rd2+ {[%clk 0:00:03]} 43. Kc1 {[%clk 0:00:04]}  Rxh5 {[%clk 0:00:03]} 44. Re1+ {[%clk 0:00:05]}  Kf2 {[%clk 0:00:03]} 45. Qf1+ {[%clk 0:00:05]}  Kg3 {[%clk 0:00:03]} 46. Kxd2 {[%clk 0:00:06]}  Rh2+ {[%clk 0:00:03]} 47. Kd1 {[%clk 0:00:06]}  f5 {[%clk 0:00:03]} 48. Re2 {[%clk 0:00:06]}  Rh3 {[%clk 0:00:02]} 49. Qg1+ {[%clk 0:00:06]}  Kh4 {[%clk 0:00:02]} 50. Rh2 {[%clk 0:00:07]}  Rxh2 {[%clk 0:00:02]} 51. Qxh2+ {[%clk 0:00:08]}  Kg5 {[%clk 0:00:03]} 52. Qxe5 {[%clk 0:00:08]}  Bf6 {[%clk 0:00:03]} 53. Qe8 {[%clk 0:00:08]}  Kg4 {[%clk 0:00:03]} 54. Qg8+ {[%clk 0:00:08]}  Kf4 {[%clk 0:00:03]} 55. Qc4+ {[%clk 0:00:08]}  Ne4 {[%clk 0:00:04]} 56. Qc7+ {[%clk 0:00:08]}  Ke3 {[%clk 0:00:05]} 57. Qf7 {[%clk 0:00:07]}  f4 {[%clk 0:00:04]} 58. Bd5 {[%clk 0:00:07]}  Bh4 {[%clk 0:00:02]} 59. Qe6 {[%clk 0:00:06]}  Kf2 {[%clk 0:00:02]} 60. Qxe4 {[%clk 0:00:06]}  Bg3 {[%clk 0:00:03]} 61. Qf3+ {[%clk 0:00:07]}  Kg1 {[%clk 0:00:03]} 62. Qg2# {[%clk 0:00:05]} 1-0


[Site "https://www.chess.com"]